fUST/lending_fUST_20250429
["ID","MTS","AMOUNT","RATE_DAILY","PERIOD"]
[359326835,1745925044671,-400.0,0.00035616,3]
[359326836,1745925044680,-627.19,0.00035616,3]
[359326837,1745925044689,-2699.82,0.00035616,3]
[359326838,1745925044741,-400.0,0.00035616,3]
[359326839,1745925044751,-2537.84,0.00035616,3]
[359326840,1745925044761,-4451.6,0.00035616,3]
[359326841,1745925044771,-400.0,0.00035616,2]
[359326842,1745925044780,-400.0,0.00035616,3]
[359326843,1745925044789,-600.0,0.00035644,5]
[359326844,1745925044798,-500.0,0.00035673,5]
[359326845,1745925044807,-500.0,0.00035673,5]
[359326846,1745925044816,-395.28247066,0.00035673,5]
[359326847,1745925044826,-500.0,0.00035673,5]
[359326848,1745925044835,-500.0,0.00035673,5]
[359326849,1745925044845,-500.0,0.00035673,5]
[359326850,1745925044854,-500.0,0.00035673,5]
[359326851,1745925044863,-500.0,0.00035673,5]
[359326852,1745925044873,-500.0,0.00035673,5]
[359326853,1745925044887,-500.0,0.00035673,5]
[359326854,1745925044896,-500.0,0.00035673,5]
[359326855,1745925044907,-500.0,0.00035673,5]
[359326856,1745925044915,-500.0,0.00035673,5]
[359326857,1745925044926,-500.0,0.00035673,5]
[359326858,1745925044935,-500.0,0.00035673,5]
[359326859,1745925044945,-500.0,0.00035673,5]
[359326860,1745925044955,-500.0,0.00035673,5]
[359326861,1745925044965,-202.8714845,0.00035726,12]
[359326862,1745925044974,-280.62567482,0.00035779,2]
[359326863,1745925044983,-150.0,0.00035873,5]
[359326864,1745925044993,-724.07711661,0.0003589,2]
[359326865,1745925045002,-65905.34622741,0.0003589,3]
[359326866,1745925045012,-157.507112,0.0003589,14]
[359326867,1745925045022,-151.0,0.0003589,14]
[359326868,1745925045032,-400.0,0.0003589,3]
[359326869,1745925045042,-400.0,0.0003589,3]
[359326870,1745925045051,-259.35935749,0.0003589,3]
[359326871,1745925045060,-743.32,0.0003589,3]
[359326872,1745925045071,-400.0,0.0003589,3]
[359326873,1745925045081,-400.0,0.0003589,3]
[359326874,1745925045090,-400.0,0.0003589,3]
[359326875,1745925045099,-400.0,0.0003589,3]
[359326876,1745925045110,-400.0,0.0003589,3]
[359326877,1745925045119,-151.6623163,0.0003589,3]
[359326878,1745925045129,-1523.96,0.0003589,3]
[359326879,1745925045138,-400.0,0.0003589,3]
[359326880,1745925045148,-1353.82,0.0003589,3]
[359326881,1745925045158,-400.0,0.0003589,3]
[359326882,1745925045168,-400.0,0.0003589,3]
[359326883,1745925045177,-400.0,0.0003589,3]
[359326884,1745925045187,-1108.27,0.0003589,3]
[359326885,1745925045196,-434.55,0.0003589,3]
[359326886,1745925045205,-400.0,0.0003589,3]
[359326887,1745925045215,-1055.62549572,0.0003589,3]
[359326888,1745925045225,-408.27,0.0003589,3]
[359326889,1745925045234,-400.0,0.0003589,3]
[359326890,1745925045243,-400.0,0.0003589,3]
[359326891,1745925045254,-400.0,0.0003589,3]
[359326892,1745925045264,-400.0,0.0003589,3]
[359326893,1745925045274,-400.0,0.0003589,3]
[359326894,1745925045283,-400.0,0.0003589,3]
[359326895,1745925045294,-400.0,0.0003589,3]
[359326896,1745925045304,-151.0,0.0003589,14]
[359326897,1745925045314,-770.49,0.0003589,3]
[359326898,1745925045324,-411.2180585,0.0003589,3]
[359326899,1745925045334,-400.0,0.0003589,3]
[359326900,1745925045343,-400.0,0.0003589,3]
[359326901,1745925045353,-1201.41,0.0003589,3]
[359326902,1745925045363,-773.98,0.0003589,3]
[359326903,1745925045372,-400.0,0.0003589,3]
[359326904,1745925045381,-862.48,0.0003589,3]
[359326905,1745925045391,-400.0,0.0003589,3]
[359326906,1745925045400,-400.0,0.0003589,3]
[359326907,1745925045410,-400.0,0.0003589,3]
[359326908,1745925045419,-501.67,0.0003589,3]
[359326909,1745925045429,-400.0,0.0003589,3]
[359326910,1745925045438,-400.0,0.0003589,3]
[359326911,1745925045448,-400.0,0.0003589,3]
[359326912,1745925045458,-400.0,0.0003589,3]
[359326913,1745925045468,-400.0,0.0003589,3]
[359326914,1745925045478,-400.0,0.0003589,3]
[359326915,1745925045487,-799.02,0.0003589,3]
[359326916,1745925045497,-400.0,0.0003589,3]
[359326917,1745925045506,-400.0,0.0003589,3]
[359326918,1745925045516,-400.0,0.0003589,3]
[359326919,1745925045525,-400.0,0.0003589,3]
[359326920,1745925045535,-400.0,0.0003589,3]
[359326921,1745925045545,-400.0,0.0003589,3]
[359326922,1745925045555,-432.43080558,0.0003589,3]
[359326923,1745925045564,-490.65,0.0003589,3]
[359326924,1745925045573,-400.0,0.0003589,3]
[359326925,1745925045583,-400.0,0.0003589,3]
[359326926,1745925045592,-453.41,0.0003589,3]
[359326927,1745925045602,-535.66,0.0003589,3]
[359326928,1745925045612,-863.92,0.0003589,3]
[359326929,1745925045621,-400.0,0.0003589,3]
[359326930,1745925045631,-400.0,0.0003589,3]
[359326931,1745925045640,-400.0,0.0003589,3]
[359326932,1745925045650,-356.34,0.0003589,3]
[359326933,1745925045659,-400.0,0.0003589,3]
[359326934,1745925045669,-400.0,0.0003589,3]
[359326935,1745925045678,-548.86,0.0003589,3]
[359326936,1745925045687,-400.0,0.0003589,3]
[359326937,1745925045697,-400.0,0.0003589,3]
[359326938,1745925045706,-400.0,0.0003589,3]
[359326939,1745925045716,-400.0,0.0003589,3]
[359326940,1745925045726,-151.0,0.0003589,14]
[359326941,1745925045735,-400.0,0.0003589,3]
[359326942,1745925045746,-400.0,0.0003589,3]
[359326943,1745925045756,-400.0,0.0003589,3]
[359326944,1745925045767,-400.0,0.0003589,3]
[359326945,1745925045777,-400.0,0.0003589,3]
[359326946,1745925045786,-400.0,0.0003589,3]
[359326947,1745925045796,-400.0,0.0003589,3]
[359326948,1745925045805,-400.0,0.0003589,3]
[359326949,1745925045814,-400.0,0.0003589,3]
[359326950,1745925045824,-400.0,0.0003589,3]
[359326951,1745925045833,-738.52,0.0003589,3]
[359326952,1745925045842,-400.0,0.0003589,3]
[359326953,1745925045851,-400.0,0.0003589,3]
[359326954,1745925045861,-790.49,0.0003589,3]
[359326955,1745925045870,-400.0,0.0003589,3]
[359326956,1745925045883,-400.0,0.0003589,3]
[359326958,1745925045892,-400.0,0.0003589,3]
[359326959,1745925045901,-400.0,0.0003589,3]
[359326960,1745925045911,-400.0,0.0003589,3]
[359326961,1745925045920,-400.0,0.0003589,3]
[359326962,1745925045929,-400.0,0.0003589,3]
[359326963,1745925045939,-400.0,0.0003589,3]
[359326964,1745925045948,-233.50454344,0.0003589,3]
[359326965,1745925045957,-428.31,0.0003589,3]
[359326966,1745925045967,-400.0,0.0003589,3]
[359326967,1745925045976,-400.0,0.0003589,3]
[359326968,1745925045986,-151.0,0.0003589,14]
[359326969,1745925045997,-400.0,0.0003589,3]
[359326970,1745925046006,-692.26,0.0003589,3]
[359326972,1745925046017,-400.0,0.0003589,3]
[359326974,1745925046026,-400.0,0.0003589,3]
[359326975,1745925046036,-400.0,0.0003589,3]
[359326976,1745925046045,-734.12,0.0003589,3]
[359326977,1745925046055,-400.0,0.0003589,3]
[359326978,1745925046065,-400.0,0.0003589,3]
[359326979,1745925046074,-410.2956358,0.0003589,3]
[359326980,1745925046084,-421.12,0.0003589,3]
[359326981,1745925046094,-400.0,0.0003589,3]
[359326982,1745925046103,-353.34422294,0.0003589,3]
[359326983,1745925046113,-400.0,0.0003589,3]
[359326984,1745925046123,-400.0,0.0003589,3]
[359326985,1745925046134,-400.0,0.0003589,3]
[359326986,1745925046143,-400.0,0.0003589,3]
[359326987,1745925046153,-417.22,0.0003589,3]
[359326988,1745925046162,-649.81,0.0003589,3]
[359326989,1745925046171,-400.0,0.0003589,3]
[359326990,1745925046181,-400.0,0.0003589,3]
[359326991,1745925046191,-820.53,0.0003589,3]
[359326992,1745925046202,-1541.11,0.0003589,3]
[359326993,1745925046212,-400.0,0.0003589,3]
[359326994,1745925046221,-400.0,0.0003589,3]
[359326995,1745925046231,-245.44110449,0.0003589,3]
[359326996,1745925046240,-543.42,0.0003589,3]
[359326997,1745925046250,-881.23,0.0003589,3]
[359326998,1745925046260,-400.0,0.0003589,3]
[359326999,1745925046269,-400.0,0.0003589,3]
[359327000,1745925046279,-510.85,0.0003589,3]
[359327001,1745925046289,-2453.74,0.0003589,3]
[359327002,1745925046299,-1213.52,0.0003589,3]
[359327003,1745925046309,-1039.65,0.0003589,3]
[359327005,1745925046319,-1530.54,0.0003589,3]
[359327007,1745925046328,-423.69,0.0003589,3]
[359327008,1745925046338,-400.0,0.0003589,3]
[359327009,1745925046347,-400.0,0.0003589,3]
[359327010,1745925046357,-663.25,0.0003589,3]
[359327011,1745925046366,-400.0,0.0003589,3]
[359327012,1745925046375,-400.0,0.0003589,3]
[359327013,1745925046386,-151.0,0.0003589,14]
[359327014,1745925046396,-1000.0,0.0003589,60]
[359327015,1745925046406,-400.0,0.0003589,3]
[359327016,1745925046415,-400.0,0.0003589,3]
[359327017,1745925046425,-151.0,0.0003589,14]
[359327018,1745925046434,-463.06,0.0003589,3]
[359327019,1745925046444,-4617.08,0.0003589,3]
[359327020,1745925046453,-1674.36,0.0003589,3]
[359327021,1745925046462,-151.0,0.0003589,14]
[359327022,1745925046471,-151.0,0.0003589,14]
[359327023,1745925046481,-151.0,0.0003589,14]
[359327024,1745925046491,-400.0,0.0003589,3]
[359327025,1745925046500,-500.0,0.0003589,3]
[359327026,1745925046510,-400.84,0.0003589,3]
[359327027,1745925046519,-400.0,0.0003589,3]
[359327028,1745925046529,-626.49,0.0003589,3]
[359327029,1745925046539,-400.0,0.0003589,3]
[359327030,1745925046549,-400.0,0.0003589,3]
[359327031,1745925046559,-1009.14,0.0003589,3]
[359327032,1745925046568,-151.0,0.0003589,14]
[359327033,1745925046578,-1069.26,0.0003589,3]
[359327034,1745925046588,-400.0,0.0003589,3]
[359327035,1745925046598,-151.0,0.0003589,14]
[359327036,1745925046608,-541.17,0.0003589,3]
[359327037,1745925046617,-400.0,0.0003589,3]
[359327038,1745925046627,-151.0,0.0003589,14]
[359327039,1745925046637,-652.07,0.0003589,3]
[359327040,1745925046647,-151.0,0.0003589,14]
[359327041,1745925046656,-400.0,0.0003589,3]
[359327042,1745925046667,-151.0,0.0003589,14]
[359327043,1745925046676,-1948.85,0.0003589,3]
[359327044,1745925046686,-191.76830321,0.0003589,3]
[359327045,1745925046696,-371.35104324,0.0003589,3]
[359327047,1745925046706,-2019.41,0.0003589,3]
[359327048,1745925046715,-1048.24,0.0003589,3]
[359327049,1745925046725,-400.0,0.0003589,3]
[359327050,1745925046735,-527.06,0.0003589,3]
[359327051,1745925046744,-400.0,0.0003589,3]
[359327052,1745925046754,-2698.42,0.0003589,3]
[359327053,1745925046763,-400.0,0.0003589,3]
[359327054,1745925046772,-400.0,0.0003589,3]
[359327055,1745925046781,-151.0,0.0003589,14]
[359327056,1745925046791,-740.94,0.0003589,3]
[359327057,1745925046801,-400.0,0.0003589,3]
[359327058,1745925046811,-400.0,0.0003589,3]
[359327059,1745925046820,-400.0,0.0003589,3]
[359327060,1745925046830,-220.51396564,0.0003589,3]
[359327061,1745925046840,-400.0,0.0003589,3]
[359327062,1745925046850,-796.15,0.0003589,3]
[359327063,1745925046859,-400.0,0.0003589,3]
[359327064,1745925046868,-400.0,0.0003589,3]
[359327065,1745925046879,-400.0,0.0003589,3]
[359327066,1745925046890,-400.0,0.0003589,3]
[359327067,1745925046900,-509.72,0.0003589,3]
[359327068,1745925046910,-911.27,0.0003589,3]
[359327069,1745925046919,-1210.84,0.0003589,3]
[359327070,1745925046929,-400.0,0.0003589,3]
[359327071,1745925046940,-400.0,0.0003589,3]
[359327072,1745925046949,-400.0,0.0003589,3]
[359327073,1745925046959,-400.0,0.0003589,3]
[359327074,1745925046969,-400.0,0.0003589,3]
[359327075,1745925046978,-560.95,0.0003589,3]
[359327076,1745925046988,-1041.2,0.0003589,3]
[359327077,1745925046998,-400.0,0.0003589,3]
[359327078,1745925047007,-400.0,0.0003589,3]
[359327079,1745925047017,-400.0,0.0003589,3]
[359327080,1745925047027,-151.0,0.0003589,14]
[359327081,1745925047037,-400.0,0.0003589,3]
[359327082,1745925047047,-1842.51,0.0003589,3]
[359327083,1745925047057,-400.0,0.0003589,3]
[359327084,1745925047067,-400.0,0.0003589,3]
[359327085,1745925047077,-400.0,0.0003589,3]
[359327086,1745925047087,-151.0,0.0003589,14]
[359327087,1745925047096,-1633.6,0.0003589,3]
[359327088,1745925047106,-400.0,0.0003589,3]
[359327089,1745925047116,-400.0,0.0003589,3]
[359327090,1745925047125,-1953.23,0.0003589,3]
[359327091,1745925047136,-1069.26,0.0003589,3]
[359327092,1745925047146,-400.0,0.0003589,3]
[359327093,1745925047156,-400.0,0.0003589,3]
[359327094,1745925047166,-151.0,0.0003589,14]
[359327095,1745925047176,-400.0,0.0003589,3]
[359327096,1745925047186,-400.0,0.0003589,3]
[359327097,1745925047196,-400.0,0.0003589,3]
[359327098,1745925047206,-400.0,0.0003589,3]
[359327099,1745925047215,-5178.54,0.0003589,3]
[359327100,1745925047225,-400.0,0.0003589,3]
[359327101,1745925047235,-1004.95,0.0003589,3]
[359327102,1745925047245,-400.0,0.0003589,3]
[359327103,1745925047255,-400.0,0.0003589,3]
[359327104,1745925047267,-400.0,0.0003589,3]
[359327105,1745925047277,-400.0,0.0003589,3]
[359327106,1745925047287,-400.0,0.0003589,3]
[359327107,1745925047297,-151.0,0.0003589,14]
[359327108,1745925047307,-654.96,0.0003589,3]
[359327109,1745925047317,-151.0,0.0003589,14]
[359327110,1745925047326,-400.0,0.0003589,3]
[359327111,1745925047335,-155.314413,0.0003589,14]
[359327112,1745925047345,-400.0,0.0003589,3]
[359327113,1745925047355,-2839.1,0.0003589,3]
[359327114,1745925047365,-2326.4,0.0003589,3]
[359327115,1745925047375,-6883.91,0.0003589,3]
[359327116,1745925047384,-400.0,0.0003589,3]
[359327117,1745925047394,-400.0,0.0003589,3]
[359327118,1745925047404,-400.0,0.0003589,3]
[359327119,1745925047413,-400.0,0.0003589,3]
[359327120,1745925047423,-606.02,0.0003589,3]
[359327121,1745925047433,-400.0,0.0003589,3]
[359327122,1745925047442,-400.0,0.0003589,3]
[359327123,1745925047452,-2200.94,0.0003589,3]
[359327124,1745925047462,-1741.3,0.0003589,3]
[359327125,1745925047471,-151.0,0.0003589,14]
[359327126,1745925047480,-400.0,0.0003589,3]
[359327127,1745925047490,-840.66,0.0003589,3]
[359327128,1745925047500,-3156.16,0.0003589,3]
[359327129,1745925047509,-682.26,0.0003589,3]
[359327130,1745925047518,-400.0,0.0003589,3]
[359327131,1745925047527,-267.50688699,0.0003589,3]
[359327132,1745925047537,-1253.57,0.0003589,3]
[359327133,1745925047547,-400.0,0.0003589,3]
[359327134,1745925047556,-404.84,0.0003589,3]
[359327135,1745925047566,-400.0,0.0003589,3]
[359327136,1745925047576,-2337.27,0.0003589,3]
[359327137,1745925047587,-1263.03,0.0003589,3]
[359327138,1745925047596,-400.0,0.0003589,3]
[359327139,1745925047606,-4333.48,0.0003589,3]
[359327140,1745925047616,-400.0,0.0003589,3]
[359327141,1745925047627,-400.0,0.0003589,3]
[359327142,1745925047637,-521.07,0.0003589,3]
[359327143,1745925047647,-731.15,0.0003589,3]
[359327144,1745925047658,-2271.53,0.0003589,3]
[359327145,1745925047668,-532.7,0.0003589,3]
[359327146,1745925047678,-506.63,0.0003589,3]
[359327147,1745925047688,-2781.57,0.0003589,3]
[359327148,1745925047698,-151.0,0.0003589,14]
[359327149,1745925047709,-400.0,0.0003589,3]
[359327150,1745925047719,-275.645608,0.0003589,14]
[359327151,1745925047729,-400.0,0.0003589,3]
[359327152,1745925047740,-448.62,0.0003589,3]
[359327153,1745925047750,-348.59120184,0.0003589,3]
[359327154,1745925047760,-694.15,0.0003589,3]
[359327155,1745925047771,-400.0,0.0003589,3]
[359327156,1745925047784,-573.99,0.0003589,3]
[359327157,1745925047794,-204.54671587,0.0003589,3]
[359327158,1745925047804,-400.0,0.0003589,3]
[359327159,1745925047814,-400.0,0.0003589,3]
[359327160,1745925047824,-400.0,0.0003589,3]
[359327161,1745925047835,-938.7,0.0003589,3]
[359327162,1745925047844,-1299.88,0.0003589,3]
[359327163,1745925047854,-1805.23,0.0003589,3]
[359327164,1745925047864,-2611.38,0.0003589,3]
[359327165,1745925047874,-157.65945186,0.0003589,3]
[359327166,1745925047889,-2856.32,0.0003589,2]
[359327167,1745925047899,-400.0,0.0003589,3]
[359327168,1745925047908,-998.53,0.0003589,3]
[359327169,1745925047918,-4321.69,0.0003589,3]
[359327170,1745925047928,-151.0,0.0003589,14]
[359327171,1745925047938,-151.0,0.0003589,14]
[359327172,1745925047947,-400.0,0.0003589,3]
[359327173,1745925047957,-379.14,0.0003589,3]
[359327174,1745925047967,-2232.92,0.0003589,3]
[359327175,1745925047977,-735.67,0.0003589,3]
[359327176,1745925047987,-500.0,0.0003589,3]
[359327177,1745925047997,-400.0,0.0003589,3]
[359327178,1745925048006,-400.0,0.0003589,3]
[359327179,1745925048017,-1559.45,0.0003589,3]
[359327180,1745925048027,-400.0,0.0003589,3]
[359327181,1745925048036,-400.0,0.0003589,3]
[359327182,1745925048046,-3790.76,0.0003589,3]
[359327183,1745925048056,-400.0,0.0003589,3]
[359327184,1745925048066,-400.0,0.0003589,3]
[359327185,1745925048076,-151.0,0.0003589,14]
[359327186,1745925048086,-400.0,0.0003589,3]
[359327187,1745925048097,-400.0,0.0003589,3]
[359327188,1745925048107,-1263.61,0.0003589,3]
[359327189,1745925048118,-400.0,0.0003589,3]
[359327190,1745925048127,-400.0,0.0003589,3]
[359327191,1745925048138,-400.0,0.0003589,3]
[359327192,1745925048149,-400.0,0.0003589,3]
[359327193,1745925048159,-400.0,0.0003589,3]
[359327194,1745925048171,-400.0,0.0003589,3]
[359327195,1745925048181,-400.0,0.0003589,3]
[359327196,1745925048191,-151.0,0.0003589,14]
[359327197,1745925048203,-151.0,0.0003589,14]
[359327198,1745925048212,-10027.47,0.0003589,3]
[359327199,1745925048222,-200.0,0.0003589,3]
[359327200,1745925048232,-400.0,0.0003589,3]
[359327201,1745925048241,-459.35,0.0003589,3]
[359327202,1745925048251,-507.63,0.0003589,3]
[359327203,1745925048261,-400.0,0.0003589,3]
[359327204,1745925048271,-550.71,0.0003589,3]
[359327205,1745925048281,-875.33,0.0003589,3]
[359327206,1745925048291,-400.0,0.0003589,3]
[359327207,1745925048302,-2786.61,0.0003589,3]
[359327208,1745925048312,-489.65,0.0003589,3]
[359327209,1745925048321,-400.0,0.0003589,3]
[359327210,1745925048331,-1511.14,0.0003589,3]
[359327211,1745925048341,-809.53,0.0003589,3]
[359327212,1745925048351,-400.0,0.0003589,3]
[359327213,1745925048361,-3141.21,0.0003589,3]
[359327214,1745925048371,-400.0,0.0003589,3]
[359327215,1745925048381,-1022.2,0.0003589,3]
[359327216,1745925048391,-894.65,0.0003589,3]
[359327217,1745925048400,-400.0,0.0003589,3]
[359327218,1745925048410,-231.39348198,0.0003589,3]
[359327219,1745925048419,-2260.12,0.0003589,3]
[359327220,1745925048429,-480.31,0.0003589,3]
[359327221,1745925048439,-400.0,0.0003589,3]
[359327222,1745925048448,-1863.76,0.0003589,3]
[359327223,1745925048458,-2341.44,0.0003589,3]
[359327224,1745925048467,-3661.6,0.0003589,3]
[359327225,1745925048477,-438.25,0.0003589,3]
[359327226,1745925048487,-659.28,0.0003589,3]
[359327227,1745925048497,-2724.41,0.0003589,3]
[359327228,1745925048506,-1168.79,0.0003589,3]
[359327229,1745925048517,-1069.13,0.0003589,3]
[359327230,1745925048527,-400.0,0.0003589,3]
[359327231,1745925048538,-953.93,0.0003589,3]
[359327232,1745925048547,-400.0,0.0003589,3]
[359327233,1745925048557,-5658.54,0.0003589,3]
[359327234,1745925048568,-2349.69,0.0003589,3]
[359327235,1745925048577,-514.07,0.0003589,3]
[359327236,1745925048587,-842.61,0.0003589,3]
[359327237,1745925048597,-400.0,0.0003589,3]
[359327238,1745925048607,-4909.3,0.0003589,3]
[359327239,1745925048769,-3081.08,0.0003589,3]
[359327240,1745925048780,-400.0,0.0003589,3]
[359327241,1745925048790,-6768.88,0.0003589,3]
[359327242,1745925048799,-400.0,0.0003589,3]
[359327243,1745925048809,-400.0,0.0003589,3]
[359327244,1745925048818,-400.0,0.0003589,3]
[359327245,1745925048828,-400.0,0.0003589,3]
[359327246,1745925048838,-768.3,0.0003589,3]
[359327247,1745925048847,-400.0,0.0003589,3]
[359327248,1745925048857,-400.0,0.0003589,3]
[359327249,1745925048866,-400.0,0.0003589,3]
[359327250,1745925048876,-400.0,0.0003589,3]
[359327251,1745925048890,-2136.09,0.0003589,3]
[359327252,1745925048899,-2537.26,0.0003589,3]
[359327253,1745925048909,-479.26194702,0.0003589,3]
[359327254,1745925048919,-400.0,0.0003589,3]
[359327255,1745925048931,-400.0,0.0003589,3]
[359327256,1745925048940,-1170.27,0.0003589,3]
[359327257,1745925048950,-400.0,0.0003589,3]
[359327258,1745925048960,-1344.88,0.0003589,3]
[359327259,1745925048970,-400.0,0.0003589,3]
[359327260,1745925048979,-3265.76,0.0003589,3]
[359327261,1745925048989,-400.0,0.0003589,3]
[359327262,1745925048998,-400.0,0.0003589,3]
[359327263,1745925049009,-400.0,0.0003589,3]
[359327264,1745925049019,-400.0,0.0003589,3]
[359327265,1745925049028,-627.19,0.0003589,3]
[359327266,1745925049038,-2699.82,0.0003589,3]
[359327267,1745925049048,-400.0,0.0003589,3]
[359327268,1745925049058,-2537.84,0.0003589,3]
[359327269,1745925049069,-4451.6,0.0003589,3]
[359327270,1745925049078,-400.0,0.0003589,2]
[359327271,1745925049087,-400.0,0.0003589,3]
[359327272,1745925049096,-800.0,0.00035927,7]
[359327273,1745925049106,-500.0,0.00035959,7]
[359327274,1745925049117,-202.8714845,0.00035987,12]
[359327275,1745925049127,-500.0,0.00036029,7]
[359327276,1745925049138,-500.0,0.00036039,7]
[359327277,1745925049149,-500.0,0.0003605,7]
[359327278,1745925049160,-500.0,0.0003613,30]
[359327279,1745925049170,-400.0,0.00036164,3]
[359327280,1745925049181,-400.0,0.00036164,3]
[359327281,1745925049192,-151.0,0.00036164,14]
[359327282,1745925049202,-743.32,0.00036164,3]
[359327283,1745925049212,-400.0,0.00036164,3]
[359327284,1745925049222,-154.335191,0.00036164,14]
[359327285,1745925049232,-315.66528758,0.00036164,3]
[359327286,1745925049242,-151.0,0.00036164,14]
[359327287,1745925049252,-1523.96,0.00036164,3]
[359327288,1745925049262,-151.0,0.00036164,14]
[359327289,1745925049272,-400.0,0.00036164,3]
[359327290,1745925049283,-1353.82,0.00036164,3]
[359327291,1745925049294,-453.85215913,0.00036164,3]
[359327292,1745925049304,-400.0,0.00036164,3]
[359327293,1745925049314,-400.0,0.00036164,3]
[359327294,1745925049325,-151.0,0.00036164,14]
[359327295,1745925049335,-1108.27,0.00036164,3]
[359327296,1745925049345,-434.55,0.00036164,3]
[359327297,1745925049355,-151.0,0.00036164,14]
[359327298,1745925049366,-151.0,0.00036164,14]
[359327299,1745925049377,-151.0,0.00036164,14]
[359327300,1745925049387,-400.0,0.00036164,3]
[359327301,1745925049398,-408.27,0.00036164,3]
[359327302,1745925049408,-400.0,0.00036164,3]
[359327303,1745925049419,-151.0,0.00036164,2]
[359327304,1745925049429,-151.0,0.00036164,2]
[359327305,1745925049440,-400.0,0.00036164,3]
[359327306,1745925049456,-151.0,0.00036164,14]
[359327307,1745925049467,-151.0,0.00036164,14]
[359327308,1745925049477,-314.25463387,0.00036164,3]
[359327309,1745925049486,-151.0,0.00036164,14]
[359327310,1745925049497,-151.0,0.00036164,14]
[359327311,1745925049507,-400.0,0.00036164,3]
[359327312,1745925049518,-206.46572758,0.00036164,3]
[359327313,1745925049527,-160.27321934,0.00036164,3]
[359327314,1745925049931,-400.0,0.00035616,3]
[359327315,1745925049941,-400.0,0.0003589,3]
[359327316,1745925049951,-239.72678066,0.00036164,3]
[359327317,1745925049962,-400.0,0.00036164,3]
[359327318,1745925049972,-151.0,0.00036164,14]
[359327319,1745925049982,-770.49,0.00036164,3]
[359327320,1745925049992,-400.0,0.00036164,3]
[359327321,1745925050003,-400.0,0.00036164,3]
[359327322,1745925050015,-1201.41,0.00036164,3]
[359327323,1745925050026,-203.37098351,0.00036164,3]
[359327324,1745925050037,-862.48,0.00036164,3]
[359327325,1745925050048,-200.0,0.00036164,3]
[359327326,1745925050059,-400.0,0.00036164,3]
[359327327,1745925050070,-400.0,0.00036164,3]
[359327328,1745925050082,-501.67,0.00036164,3]
[359327329,1745925050094,-201.82459651,0.00036164,3]
[359327330,1745925050106,-400.0,0.00036164,3]
[359327331,1745925050118,-400.0,0.00036164,3]
[359327332,1745925050129,-200.0,0.00036164,3]
[359327333,1745925050141,-400.0,0.00036164,3]
[359327334,1745925050153,-200.0,0.00036164,3]
[359327335,1745925050163,-799.02,0.00036164,3]
[359327336,1745925050175,-209.27675791,0.00036164,3]
[359327337,1745925050186,-400.0,0.00036164,3]
[359327338,1745925050196,-400.0,0.00036164,3]
[359327339,1745925050206,-507.29117012,0.00036164,3]
[359327340,1745925050216,-333.75415314,0.00036164,3]